bitfinex/quotes_SOLUSD_20260228
["timestamp","ask_amount","ask_price","bid_price","bid_amount"]
[1772292627533,4.13564858,80.865,80.831,4.12303281]
[1772292627944,4.13564858,80.859,80.823,4.12303281]
[1772292629629,4.13564858,80.867,80.831,4.12303281]
[1772292629933,4.13564858,80.878,80.841,4.12303281]
[1772292630339,4.13564858,80.878,80.85,20.50902345]
[1772292630643,4.13564858,80.878,80.841,4.12303281]
[1772292631024,4.13564858,80.869,80.841,4.12303281]
[1772292632525,4.13564858,80.869,80.842,16.49284058]
[1772292632721,4.13564858,80.869,80.843,4.12303281]
[1772292633921,4.13564858,80.868,80.826,12.37225645]
[1772292634139,4.13564858,80.859,80.826,16.49528926]
[1772292634725,4.13564858,80.857,80.826,16.49528926]
[1772292635126,4.13564858,80.857,80.826,12.37225645]
[1772292636017,4.13564858,80.857,80.822,12.37280543]
[1772292637343,4.13564858,80.857,80.823,4.12303281]
[1772292638439,12.36766597,80.856,80.823,4.12303281]
[1772292638739,4.13564858,80.855,80.824,12.3725626]
[1772292639129,4.13564858,80.855,80.824,16.49559541]
[1772292639935,4.13564858,80.855,80.825,4.12303281]
[1772292640643,4.15817646,80.853,80.825,4.12303281]
[1772292641929,4.15817646,80.868,80.825,4.12303281]
[1772292642541,4.15817646,80.866,80.831,4.43965026]
[1772292644450,4.16541546,80.849,80.816,4.24272358]
[1772292644626,4.16541546,80.847,80.817,16.61635784]
[1772292646065,4.16541546,80.847,80.81,4.24272358]
[1772292646548,4.16541546,80.839,80.81,4.24272358]
[1772292646729,4.16541546,80.837,80.788,3.69383402]
[1772292646943,4.16541546,80.829,80.791,4.24272358]
[1772292647255,4.16541546,80.829,80.785,12.37852392]
[1772292647432,4.16541546,80.829,80.786,4.24272358]
[1772292647634,4.16541546,80.799,80.768,3.69383402]
[1772292647930,16.38599064,80.78,80.72,0.2]
[1772292648132,16.38599064,80.78,80.714,4.24272358]
[1772292648133,16.38599064,80.73,80.698,4.24272358]
[1772292648528,16.38599064,80.75,80.726,4.24272358]
[1772292648839,4.08252368,80.768,80.726,4.24272358]
[1772292649227,4.08252368,80.759,80.726,4.24272358]
[1772292649734,92.85740815,80.769,80.711,4.24272358]
[1772292649735,16.38599064,80.74,80.711,4.24272358]
[1772292650349,4.08252368,80.759,80.711,4.24272358]
[1772292650535,4.08252368,80.759,80.721,4.24272358]
[1772292650928,16.46351143,80.769,80.731,4.24272358]
[1772292651143,4.08252368,80.768,80.731,4.24272358]
[1772292651343,4.08252368,80.768,80.74,16.38599064]
[1772292651649,39.60206312,80.774,80.751,4.24272358]
[1772292652141,39.60206312,80.774,80.76,16.38599064]
[1772292652358,12.38037463,80.773,80.751,4.24272358]
[1772292653236,39.60206312,80.774,80.751,4.24272358]
[1772292653437,12.38037463,80.773,80.751,4.24272358]
[1772292654639,39.60206312,80.774,80.751,4.24272358]
[1772292655444,39.60206312,80.774,80.751,3.94091106]
[1772292656023,51.98229208,80.774,80.751,3.94091106]
[1772292657645,39.60206312,80.774,80.751,3.94091106]
[1772292658046,39.60206312,80.774,80.752,4.24272358]
[1772292658550,31.22376109,80.774,80.753,4.24272358]
[1772292658750,2.47215037,102.87,80.765,4.24272358]
[1772292658751,12.37072591,80.836,80.765,4.24272358]
[1772292658935,16.53614137,80.836,80.81,16.38599064]
[1772292659247,4.16541546,80.856,80.821,4.24272358]
[1772292659652,4.16541546,80.854,80.821,4.24272358]
[1772292659957,4.16541546,80.854,80.822,12.37286877]
[1772292660559,4.16541546,80.854,80.823,4.24272358]
[1772292660855,4.16541546,80.869,80.831,4.24272358]
[1772292661062,4.16541546,80.869,80.811,4.24272358]
[1772292661254,4.16541546,80.859,80.811,4.24272358]
[1772292661452,4.16541546,80.849,80.802,4.24272358]
[1772292661642,4.16541546,80.847,80.802,4.24272358]
[1772292662152,4.16541546,80.839,80.791,4.24272358]
[1772292662445,4.16541546,80.799,80.765,4.24272358]
[1772292663568,12.37654397,80.798,80.765,4.24272358]
[1772292663738,16.54195943,80.798,80.765,4.24272358]
[1772292663937,16.38599064,80.79,80.754,4.24272358]
[1772292664248,16.38599064,80.78,80.744,4.24272358]
[1772292664446,4.16541546,80.789,80.75,16.38599064]
[1772292664642,4.16541546,80.789,80.751,4.24272358]
[1772292665236,43.3179039,80.798,80.761,4.24272358]
[1772292665435,12.37485923,80.809,80.771,4.24272358]
[1772292665662,12.37485923,80.809,80.773,4.24272358]
[1772292665860,12.37485923,80.809,80.781,4.24272358]
[1772292667082,30.93381957,80.818,80.782,16.6217189]
[1772292667851,35.09923503,80.818,80.782,16.6217189]
[1772292668458,30.93381957,80.818,80.783,4.24272358]
[1772292668660,61.02410576,80.875,80.782,12.37899532]
[1772292668661,4.16541546,80.848,80.8,4.24272358]
[1772292668858,4.16541546,80.848,80.801,4.24272358]
[1772292669052,4.16541546,80.846,80.802,12.37593128]
[1772292669361,4.16541546,80.839,80.801,16.61870954]
[1772292669565,4.16541546,80.839,80.801,4.24272358]
[1772292669858,4.16541546,80.819,80.786,151.65081884]
[1772292670161,4.16541546,80.819,80.786,90.15081884]
[1772292670956,16.38599064,80.81,80.786,90.15081884]
[1772292671155,4.07116984,80.808,80.786,7.06641213]
[1772292671354,4.03045814,80.799,80.681,12.39440845]
[1772292671556,16.38599064,80.74,80.673,12.39560618]
[1772292671769,4.07116984,80.761,80.673,43.38490867]
[1772292671953,16.38599064,80.76,80.71,16.38599064]
[1772292672154,4.07116984,80.769,80.72,16.38599064]
[1772292672343,4.07116984,80.769,80.73,16.38599064]
[1772292672745,4.07116984,80.749,80.71,16.38599064]
[1772292672970,3.69383402,80.777,80.69,16.38599064]
[1772292672971,4.07116984,80.739,80.69,16.38599064]
[1772292673171,16.38599064,80.7,80.67,1e-08]
[1772292673375,4.07116984,80.692,80.65,16.38599064]
[1772292673672,4.07116984,80.692,80.66,20.75629784]
[1772292673872,4.07116984,80.692,80.661,4.3703072]
[1772292674178,4.07116984,80.707,80.67,16.38599064]
[1772292674601,4.07116984,80.707,80.661,4.3703072]
[1772292675082,43.36620904,80.708,80.631,4.3703072]
[1772292675083,4.07116984,80.699,80.631,4.3703072]
[1772292675255,12.39479914,80.679,80.641,4.3703072]
[1772292675576,16.38599064,80.66,80.631,4.3703072]
[1772292675868,4.07116984,80.659,80.62,16.38599064]
[1772292676068,16.38599064,80.67,80.631,4.3703072]
[1772292676261,4.07116984,80.683,80.651,4.3703072]
[1772292676763,12.39433826,80.682,80.651,4.3703072]
[1772292677071,4.07116984,80.681,80.641,4.3703072]
[1772292677254,12.39464551,80.68,80.641,4.3703072]
[1772292677450,4.07116984,80.679,80.641,4.3703072]
[1772292677873,4.07116984,80.649,80.61,4.6187158]
[1772292678049,192.11700544,80.68,80.641,4.3703072]
[1772292678050,12.39464551,80.68,80.641,4.3703072]
[1772292678372,4.07116984,80.679,80.641,4.3703072]
[1772292678571,12.39464551,80.68,80.641,4.3703072]
[1772292678755,20.45716048,80.69,80.651,4.3703072]
[1772292678954,12.39326302,80.689,80.651,4.3703072]
[1772292679372,12.39326302,80.689,80.653,4.3703072]
[1772292679572,12.39246331,80.695,80.661,4.3703072]
[1772292680073,39.83697709,80.694,80.661,4.3703072]
[1772292680288,35.76580725,80.693,80.661,4.3703072]
[1772292680451,16.38599064,80.69,80.661,4.3703072]
[1772292680654,28.6126458,80.689,80.661,4.3703072]
[1772292680862,4.07116984,80.692,80.661,4.3703072]
[1772292681272,4.07116984,80.689,80.647,4.3703072]
[1772292681576,4.07116984,80.688,80.651,4.3703072]
[1772292681776,12.39252148,80.694,80.651,4.3703072]
[1772292681979,12.39252148,80.694,80.65,16.38599064]
[1772292681980,12.3920344,80.697,80.661,4.3703072]
[1772292682478,24.12862943,80.714,80.681,4.3703072]
[1772292683059,16.38599064,80.71,80.671,4.3703072]
[1772292683267,1.23851279,80.709,80.682,12.39433826]
[1772292683481,4.07116984,80.713,80.683,4.3703072]
[1772292684179,22.89011664,80.714,80.69,16.38599064]
[1772292684370,22.89011664,80.714,80.683,4.3703072]
[1772292684878,4.07116984,80.712,80.672,4.3703072]
[1772292685081,4.07116984,80.709,80.672,4.3703072]
[1772292685383,16.46174847,80.707,80.673,12.39572099]
[1772292685575,16.46174847,80.707,80.674,4.3703072]
[1772292685576,1.23851279,80.706,80.674,4.3703072]
[1772292685881,4.07116984,80.699,80.651,4.3703072]
[1772292686183,4.07116984,80.697,80.651,4.3703072]
[1772292686387,5.30968263,80.696,80.651,4.3703072]
[1772292686586,4.07116984,80.695,80.651,4.3703072]
[1772292686760,1.23851279,80.694,80.651,4.3703072]
[1772292686964,4.07116984,80.693,80.651,4.3703072]
[1772292687171,4.07116984,80.689,80.651,4.3703072]
[1772292687378,12.39357021,80.687,80.653,4.3703072]
[1772292687586,1.23851279,80.686,80.653,4.3703072]
[1772292687877,16.45755957,80.7,80.66,16.45755957]
[1772292688073,12.39157372,80.7,80.671,4.3703072]
[1772292688470,4.07116984,80.699,80.66,16.45755957]
[1772292688988,4.07116984,80.699,80.661,4.3703072]
[1772292689276,12.39341661,80.688,80.653,4.3703072]
[1772292689464,30.97893432,80.7,80.655,4.3703072]
[1772292689465,4.07116984,80.687,80.655,4.3703072]
[1772292691968,16.46489365,80.686,80.655,4.3703072]
[1772292692169,16.46489365,80.686,80.626,1.24029469]
[1772292692170,4.07116984,80.686,80.656,16.76864086]
[1772292694284,4.07116984,80.686,80.657,4.3703072]
[1772292694496,13.73455111,80.701,80.656,12.39833366]
[1772292694497,13.73455111,80.701,80.671,4.3703072]
[1772292694990,4.07116984,80.719,80.681,4.3703072]
[1772292695169,4.07116984,80.723,80.681,4.3703072]
[1772292695369,4.07116984,80.723,80.691,4.3703072]
[1772292695966,20.52872941,80.72,80.691,4.3703072]
[1772292696189,4.07116984,80.719,80.681,4.3703072]
[1772292696392,12.38881042,80.718,80.682,12.39433826]
[1772292696687,12.38881042,80.718,80.683,4.3703072]
[1772292696890,4.07116984,80.717,80.683,4.3703072]
[1772292698469,4.07116984,80.715,80.675,30.98815943]
[1772292698869,4.07116984,80.715,80.676,4.3703072]
[1772292699593,4.07116984,80.713,80.678,16.76525997]
[1772292699786,4.07116984,80.709,80.672,4.3703072]
[1772292701374,4.13939491,80.727,80.691,4.09565441]
[1772292701684,12.38788959,80.724,80.7,16.45755957]
[1772292701892,7.82670218,80.743,80.701,4.09565441]
[1772292702094,16.52452284,80.742,80.71,20.55321398]
[1772292702680,16.52452284,80.742,80.711,4.09565441]
[1772292703382,4.13939491,80.741,80.711,4.09565441]
[1772292703880,12.38543472,80.74,80.712,12.38973139]
[1772292704476,4.13939491,80.741,80.712,16.50258453]
[1772292704675,12.38543472,80.74,80.712,16.50258453]
[1772292706596,16.7330099,80.74,80.712,16.50258453]
[1772292707104,4.34757518,80.737,80.7,16.45755957]
[1772292707286,4.34757518,80.729,80.691,4.11285314]
[1772292707878,4.34757518,80.737,80.701,4.11285314]
[1772292709002,4.34757518,80.737,80.711,4.11285314]
[1772292709389,12.38499286,80.743,80.713,4.11285314]
[1772292709608,4.34757518,80.753,80.721,4.11285314]
[1772292709992,12.3823675,80.76,80.731,4.11285314]
[1772292710893,16.72994268,80.76,80.731,4.11285314]
[1772292711184,4.34757518,80.759,80.731,4.11285314]
[1772292712301,12.38158146,80.766,80.733,4.11285314]
[1772292712499,4.34757518,80.765,80.733,4.11285314]
[1772292713202,4.34757518,80.749,80.712,4.11285314]
[1772292713501,4.34757518,80.739,80.712,4.11285314]
[1772292713705,4.34757518,80.739,80.706,12.39057747]
[1772292714208,4.34757518,80.737,80.706,47.48006183]
[1772292714409,4.34757518,80.737,80.707,4.11285314]
[1772292716307,4.34757518,80.735,80.707,4.11285314]
[1772292720291,43.35116923,80.736,80.676,1.239526]
[1772292720292,12.17175457,80.765,80.708,12.39034544]
[1772292720599,4.34757518,80.758,80.721,4.11285314]
[1772292721810,5.36086188,80.757,80.721,4.11285314]
[1772292722013,4.34757518,80.753,80.721,4.11285314]
[1772292722218,16.45755957,80.75,80.712,4.11285314]
[1772292722512,5.36086188,80.735,80.712,4.11285314]
[1772292722696,4.34757518,80.734,80.704,4.11285314]
[1772292723608,4.34757518,80.73,80.695,4.11285314]
[1772292723792,4.34757518,80.73,80.697,4.11285314]
[1772292723995,4.34757518,80.73,80.7,16.45755957]
[1772292724604,16.73469752,80.729,80.7,16.45755957]
[1772292725011,16.73469752,80.729,80.7,20.57041271]
[1772292725315,4.34757518,80.728,80.7,4.11285314]
[1772292725514,4.34757518,80.728,80.701,4.11285314]
[1772292726213,4.34757518,80.72,80.691,4.11285314]
[1772292726518,4.34757518,80.707,80.682,4.11285314]
[1772292726892,4.34757518,80.707,80.661,30.99373629]
[1772292726893,4.34757518,80.701,80.674,4.11285314]
[1772292727135,5.36086188,80.702,80.666,4.11285314]
[1772292727136,4.34757518,80.695,80.666,4.11285314]
[1772292727290,5.36086188,80.702,80.65,16.45755957]
[1772292727291,16.45755957,80.71,80.661,4.11285314]
[1772292727497,12.38971276,80.713,80.681,4.11285314]
[1772292727692,16.73656516,80.717,80.691,4.11285314]
[1772292727999,7.83842925,80.723,80.7,16.45755957]
[1772292728313,4.34757518,80.722,80.68,16.45755957]
[1772292728512,4.34757518,80.722,80.691,12.39295584]
[1772292728815,4.34757518,80.72,80.69,16.45755957]
[1772292729916,4.34757518,80.72,80.691,4.11285314]
[1772292730415,7.83842925,80.723,80.692,4.11285314]
[1772292730623,7.83842925,80.723,80.702,4.48468843]
[1772292732202,7.83842925,80.723,80.711,4.48468843]
[1772292732502,12.38590481,80.737,80.711,4.48468843]
[1772292732706,4.46090856,80.743,80.711,4.48468843]
[1772292732893,12.38425602,80.748,80.72,16.45755957]
[1772292733094,16.84516458,80.748,80.721,4.48468843]
[1772292733294,4.46090856,80.747,80.721,4.48468843]
[1772292734511,16.84542296,80.746,80.721,4.48468843]
[1772292734712,4.46090856,80.745,80.708,4.48468843]
[1772292735319,16.45755957,80.74,80.708,4.48468843]
[1772292735519,4.46090856,80.741,80.708,4.48468843]
[1772292735900,61.90763222,80.766,80.707,12.39039954]
[1772292735901,4.46090856,80.759,80.721,4.48468843]
[1772292736600,4.46090856,80.757,80.721,4.48468843]
[1772292737208,4.46090856,80.757,80.709,1.23901919]
[1772292737424,4.46090856,80.749,80.705,4.48468843]
[1772292737721,4.46090856,80.747,80.705,4.48468843]
[1772292738103,4.46090856,80.739,80.705,4.48468843]
[1772292738505,12.38328751,80.754,80.707,4.48468843]
[1772292738712,12.38328751,80.754,80.721,4.48468843]
[1772292739211,4.46090856,80.753,80.721,4.48468843]
[1772292739898,4.46090856,80.753,80.686,3.69383402]
[1772292739899,4.46090856,80.729,80.657,4.48468843]
[1772292740206,4.46090856,80.727,80.683,4.48468843]
[1772292740402,4.46090856,80.725,80.683,4.48468843]
[1772292740597,4.46090856,80.723,80.685,4.48468843]
[1772292740916,12.38649882,80.734,80.701,4.48468843]
[1772292741318,16.84740738,80.734,80.701,4.48468843]
[1772292741708,4.46090856,80.733,80.701,4.48468843]
[1772292742608,4.46090856,80.731,80.69,20.942248]
[1772292742804,4.46090856,80.729,80.691,4.48468843]
[1772292743124,4.46090856,80.727,80.691,4.48468843]
[1772292743325,43.35331714,80.732,80.691,4.48468843]
[1772292743326,4.46090856,80.725,80.691,4.48468843]
[1772292743830,4.46090856,80.725,80.667,4.48468843]
[1772292743831,4.46090856,80.709,80.667,4.48468843]
[1772292744606,1.23903454,80.725,80.637,1.2401255]
[1772292744607,4.46090856,80.707,80.671,4.48468843]
[1772292746620,4.46090856,80.719,80.691,4.48468843]
[1772292746827,4.46090856,80.718,80.691,4.48468843]
[1772292747326,4.46090856,80.718,80.681,4.48468843]
[1772292748009,4.46090856,80.727,80.701,4.48468843]
[1772292750127,4.46090856,80.727,80.701,16.8760639]
[1772292750438,4.46090856,80.738,80.711,4.48468843]
[1772292751109,4.46090856,80.719,80.672,4.48468843]
[1772292751423,13.62492948,80.737,80.656,4.48468843]
[1772292751424,4.46090856,80.699,80.656,4.48468843]
[1772292751621,94.1332466,80.737,80.671,4.48468843]
[1772292751622,4.46090856,80.708,80.671,4.48468843]
[1772292752418,4.46090856,80.699,80.661,4.48468843]
[1772292752816,4.46090856,80.689,80.661,4.48468843]
[1772292753111,4.46090856,80.699,80.662,12.39741142]
[1772292753322,4.46090856,80.699,80.663,4.48468843]
[1772292754240,4.46090856,80.689,80.655,12.39848738]
[1772292754413,4.46090856,80.689,80.656,4.48468843]
[1772292754940,4.46090856,80.689,80.661,4.48468843]
[1772292755308,4.46090856,80.689,80.661,16.88215602]
[1772292755635,4.46090856,80.689,80.662,4.48468843]
[1772292756413,4.46090856,80.699,80.662,4.48468843]
[1772292756611,30.97461309,80.712,80.662,4.48468843]
[1772292756612,16.85110048,80.709,80.671,4.48468843]
[1772292756828,4.46090856,80.708,80.671,4.48468843]
[1772292757434,4.46090856,80.708,80.673,4.48468843]
[1772292757825,16.85132314,80.708,80.673,4.48468843]
[1772292758128,4.46090856,80.707,80.673,4.48468843]
[1772292760030,4.46090856,80.707,80.675,4.48468843]
[1772292760235,4.46090856,80.705,80.671,4.48468843]
[1772292760624,4.27640921,80.699,80.671,4.48468843]
[1772292761429,4.27640921,80.699,80.671,16.88071674]
[1772292762736,4.27640921,80.699,80.671,4.48468843]
[1772292762963,12.39188083,80.698,80.671,4.48468843]
[1772292763246,4.27640921,80.697,80.664,4.24646439]
[1772292763427,4.27640921,80.697,80.643,1.24003323]
[1772292763428,4.27640921,80.689,80.655,4.24646439]
[1772292764543,4.362056,80.688,80.655,4.24646439]
[1772292765839,4.362056,80.686,80.655,4.24646439]
[1772292766141,4.362056,80.686,80.657,4.29541115]
[1772292766533,4.362056,80.714,80.681,4.29541115]
[1772292766744,4.362056,80.721,80.691,4.29541115]
[1772292767445,4.362056,80.729,80.7,16.43484513]
[1772292767626,4.362056,80.745,80.713,4.29541115]
[1772292767823,4.362056,80.745,80.721,4.29541115]
[1772292771248,4.362056,80.743,80.713,4.29541115]
[1772292771946,4.362056,80.749,80.713,4.29541115]
[1772292773733,4.362056,80.747,80.713,4.29541115]
[1772292775248,1.23903454,80.755,80.714,4.29541115]
[1772292775429,4.362056,80.762,80.731,4.29541115]
[1772292775630,4.362056,80.762,80.733,4.29541115]
[1772292776649,4.362056,80.76,80.733,4.29541115]
[1772292777028,4.362056,80.76,80.72,16.43484513]
[1772292777234,4.362056,80.759,80.721,4.29541115]
[1772292777750,1.23903454,80.779,80.741,4.29541115]
[1772292777751,4.362056,80.774,80.741,4.29541115]
[1772292779950,4.362056,80.772,80.741,4.29541115]
[1772292780956,16.41748092,80.78,80.743,4.29541115]
[1772292781135,4.362056,80.79,80.749,4.29541115]
[1772292781449,4.362056,80.804,80.759,4.29541115]
[1772292781952,1.23903454,80.839,80.766,4.57973429]
[1772292781953,4.362056,80.813,80.766,4.57973429]
[1772292782133,4.362056,80.821,80.769,4.57973429]
[1772292782447,4.362056,80.827,80.769,4.57973429]
[1772292782951,4.362056,80.827,80.778,4.29541115]
[1772292783252,4.362056,80.827,80.788,4.29541115]
[1772292784138,4.362056,80.827,80.772,3.69383402]
[1772292784139,16.73421069,80.827,80.79,4.29541115]
[1772292784342,0.1,80.84,80.798,4.29541115]
[1772292784644,4.362056,80.839,80.798,4.29541115]
[1772292785155,4.362056,80.838,80.798,4.29541115]
[1772292785342,0.1,80.84,80.798,4.29541115]
[1772292785543,12.47026126,80.84,80.798,4.29541115]
[1772292785856,4.362056,80.839,80.798,4.29541115]
[1772292786054,12.37041985,80.838,80.798,4.29541115]
[1772292786242,4.362056,80.829,80.779,4.57973429]
[1772292786448,4.362056,80.837,80.779,4.57973429]
[1772292786752,12.37041985,80.838,80.786,4.29541115]
[1772292787175,0.1,80.84,80.786,4.29541115]
[1772292787338,4.462056,80.84,80.786,4.29541115]
[1772292787844,4.362056,80.839,80.794,4.29541115]
[1772292788559,4.362056,80.837,80.796,4.29541115]
[1772292789738,0.1,80.84,80.798,4.29541115]
[1772292789957,0.1,80.84,80.806,4.29541115]
[1772292790164,4.362056,80.839,80.806,4.29541115]
[1772292790457,0.1,80.84,80.806,4.29541115]
[1772292790751,0.1,80.84,80.807,12.37516551]
[1772292790938,0.1,80.84,80.808,4.13402831]
[1772292791135,0.1,80.84,80.816,0.14216157]
[1772292791456,0.1,80.85,80.817,4.13402831]
[1772292792051,0.1,80.86,80.809,4.41835145]
[1772292792250,4.14287815,80.875,80.814,4.13402831]
[1772292792457,4.14287815,80.875,80.807,105.18890688]
[1772292792458,4.14287815,80.869,80.826,4.13402831]
[1772292792758,16.41748092,80.87,80.826,4.13402831]
[1772292792759,4.14287815,80.867,80.827,4.13402831]
[1772292794053,12.36520269,80.873,80.827,4.13402831]
[1772292794256,12.36520269,80.873,80.829,4.13402831]
[1772292794753,16.41748092,80.87,80.831,4.13402831]
[1772292795053,4.14287815,80.839,80.786,4.13402831]
[1772292795361,4.14287815,80.839,80.788,4.13402831]
[1772292795550,16.41748092,80.83,80.789,4.13402831]
[1772292795856,16.41748092,80.83,80.791,4.13402831]
[1772292796238,4.14287815,80.839,80.788,3.69383402]
[1772292796239,4.14287815,80.839,80.797,4.13402831]
[1772292796445,20.56035907,80.85,80.799,4.13402831]
[1772292796634,16.41748092,80.84,80.801,4.13402831]
[1772292796834,4.14287815,80.837,80.803,4.13402831]
[1772292797761,16.41748092,80.85,80.807,4.13402831]
[1772292798057,16.41748092,80.85,80.809,4.13402831]
[1772292798259,4.14287815,80.89,80.817,4.13402831]
[1772292798443,4.14287815,80.879,80.819,4.41835145]
[1772292798645,111.2371685,80.909,80.821,4.41835145]
[1772292798646,4.14287815,80.869,80.821,4.41835145]
[1772292798943,4.14287815,80.859,80.825,4.13402831]
[1772292799148,4.14287815,80.859,80.827,4.13402831]
[1772292799452,4.14287815,80.859,80.829,4.13402831]
[1772292799657,12.36558935,80.87,80.831,4.13402831]
[1772292799658,16.41748092,80.87,80.831,4.13402831]
[1772292799846,4.14287815,80.878,80.833,4.13402831]
[1772292800050,12.36422311,80.879,80.805,3.69383402]
[1772292800051,4.14287815,80.859,80.834,1.23710319]
[1772292800560,4.14287815,80.859,80.828,4.13402831]
[1772292800739,4.14287815,80.859,80.831,12.37149113]
[1772292800940,12.36736006,80.858,80.832,1.2371338]
[1772292801656,4.14287815,80.859,80.832,1.2371338]
[1772292801840,4.14287815,80.858,80.832,5.37116211]
[1772292802040,4.14287815,80.858,80.832,1.2371338]
[1772292802341,4.14287815,80.858,80.825,1.23724095]
[1772292802854,4.14287815,80.858,80.826,12.37225645]
[1772292803045,4.14287815,80.858,80.827,5.37123864]
[1772292803363,4.14287815,80.849,80.819,4.13402831]
[1772292803551,4.14287815,80.849,80.821,4.13402831]
[1772292804552,4.14287815,80.849,80.821,5.37133049]
[1772292804942,4.14287815,80.849,80.822,4.13402831]
[1772292805357,30.91878254,80.857,80.821,1.23730218]
[1772292805358,16.41748092,80.84,80.821,1.23730218]
[1772292805661,4.14287815,80.84,80.813,4.13402831]
[1772292805959,4.14287815,80.84,80.814,5.37143766]
[1772292806157,4.14287815,80.84,80.806,4.13402831]
[1772292806158,4.14287815,80.839,80.806,4.13402831]
[1772292806349,4.14287815,80.839,80.808,4.13402831]
[1772292806545,4.14287815,80.848,80.808,4.13402831]
[1772292806753,4.14287815,80.848,80.81,4.13402831]
[1772292806946,4.14287815,80.856,80.814,4.13402831]
[1772292807164,4.14287815,80.856,80.816,4.13402831]
[1772292807344,4.14287815,80.856,80.818,4.13402831]
[1772292807544,4.14287815,80.856,80.82,4.13402831]
[1772292807853,4.14287815,80.856,80.822,4.13402831]
[1772292808165,16.51069708,80.855,80.822,4.13402831]
[1772292808352,4.14287815,80.854,80.822,4.13402831]
[1772292809163,16.5080612,80.873,80.824,4.13402831]
[1772292809363,0.95999997,80.906,80.836,0.14216157]
[1772292809541,4.14287815,80.906,80.855,4.13402831]
[1772292809744,4.14287815,80.906,80.861,4.13402831]
[1772292810962,4.14287815,80.905,80.861,4.13402831]
[1772292811152,0.1,80.91,80.863,4.13402831]
[1772292811357,4.14287815,80.909,80.863,4.13402831]
[1772292812053,0.1,80.91,80.863,4.13402831]
[1772292812260,0.1,80.91,80.865,4.13402831]
[1772292812454,0.1,80.91,80.871,4.13402831]
[1772292813365,0.1,80.91,80.873,4.13402831]
[1772292813969,0.1,80.91,80.872,43.27826688]
[1772292813970,4.14287815,80.946,80.886,4.13402831]
[1772292814164,4.14287815,80.946,80.895,0.28432314]
[1772292814465,4.14287815,80.946,80.9,4.13402831]
[1772292814765,16.4967931,80.946,80.9,4.13402831]
[1772292814941,4.24287815,80.96,80.906,4.13402831]
[1772292815140,4.24287815,80.96,80.91,4.13402831]
[1772292815343,4.24287815,80.96,80.912,4.13402831]
[1772292815877,4.14287815,80.958,80.912,4.13402831]
[1772292817152,0.1,80.96,80.92,4.13402831]
[1772292817354,4.14287815,80.958,80.922,4.13402831]
[1772292818075,4.14287815,80.958,80.911,30.89814734]
[1772292818076,4.14287815,80.956,80.911,4.13402831]
[1772292818248,4.14287815,80.949,80.911,4.13402831]
[1772292818454,4.14287815,80.949,80.913,4.13402831]
[1772292819455,4.14287815,80.947,80.914,16.49282901]
[1772292819651,4.14287815,80.959,80.915,4.13402831]
[1772292819852,4.14287815,80.98,80.926,0.28432314]
[1772292820072,4.14287815,80.973,80.931,4.13402831]
[1772292820383,4.14287815,80.959,80.92,4.13402831]
[1772292821067,4.24770512,80.949,80.912,4.07462807]
[1772292821578,4.24770512,80.959,80.915,4.07462807]
[1772292821752,4.24770512,80.959,80.917,4.07462807]
[1772292821952,4.24770512,80.959,80.919,4.07462807]
[1772292822152,4.24770512,80.959,80.918,1.23581897]
[1772292822153,4.24770512,80.959,80.921,4.07462807]
[1772292822374,4.24770512,80.958,80.923,4.07462807]
[1772292822755,4.24770512,80.958,80.925,4.07462807]
[1772292822965,4.24770512,80.958,80.927,4.07462807]
[1772292823457,12.35223637,80.957,80.927,4.07462807]
[1772292823664,16.59994149,80.957,80.927,4.07462807]
[1772292823856,12.35223637,80.957,80.927,4.07462807]
[1772292824058,4.38407239,80.956,80.927,4.07462807]
[1772292824256,4.38407239,80.949,80.918,4.0774865]
[1772292824579,43.2328273,80.957,80.907,4.0774865]
[1772292824580,4.38407239,80.939,80.907,4.0774865]
[1772292824881,16.36035239,80.92,80.889,4.0774865]
[1772292825088,16.36035239,80.92,80.891,4.0774865]
[1772292825374,4.38407239,80.929,80.891,4.0774865]
[1772292825574,4.38407239,80.909,80.881,4.0774865]
[1772292826764,4.38407239,80.899,80.866,4.0774865]
[1772292827277,4.38407239,80.889,80.86,12.36692577]
[1772292827481,4.38407239,80.889,80.857,4.0774865]
[1772292827482,12.36277321,80.888,80.857,4.0774865]
[1772292827772,16.36035239,80.89,80.858,12.36736006]
[1772292827773,4.38407239,80.887,80.858,12.36736006]
[1772292828081,4.38407239,80.887,80.857,4.0774865]
[1772292828758,4.38407239,80.887,80.859,4.0774865]
[1772292828961,16.36035239,80.89,80.859,4.0774865]
[1772292829162,4.38407239,80.889,80.859,4.0774865]
[1772292829584,12.36277321,80.888,80.859,4.0774865]
[1772292829790,4.38407239,80.887,80.85,4.0774865]
[1772292830085,20.74442478,80.89,80.85,4.0774865]
[1772292830893,20.74442478,80.89,80.852,4.0774865]
[1772292831381,12.36130465,80.898,80.852,4.0774865]
[1772292831588,4.38407239,80.897,80.854,4.0774865]
[1772292831759,4.38407239,80.897,80.856,4.0774865]
[1772292832980,4.38407239,80.897,80.858,4.0774865]
[1772292833279,12.36155063,80.896,80.86,4.0774865]
[1772292833958,4.38407239,80.914,80.862,4.0774865]
[1772292834175,4.38407239,80.914,80.864,4.0774865]